[Event "GER-ch Youth-U12 2022"]
[Site "Willingen"]
[Date "2022.06.08"]
[Round "6.16"]
[White "Wylie, Leonard"]
[Black "Wang, Arthur D"]
[Result "0-1"]
[ECO "C24"]
[WhiteElo "1733"]
[BlackElo "2090"]
[Annotator "TA"]
[PlyCount "118"]
[EventDate "2022.06.05"]
[EventType "swiss"]
[EventRounds "9"]
[EventCountry "GER"]
[SourceTitle "playchess.com"]
[Source "ChessBase"]
[SourceQuality "1"]
[TimeControl "40/4500+30:900+30"]

{[%evp 9,117,0,0,-30,-37,-49,-41,-77,-67,-78,-62,-91,-86,-107,-93,-137,-125,-133,-116,-118,-114,-234,-70,-74,-75,-83,-69,-75,-66,-95,-73,-128,-129,-140,-134,-155,-147,-154,-149,-202,-154,-155,-134,-181,-190,-195,-157,-184,-181,-190,-180,-264,-280,-565,-551,-1545,-965,-6187,-5716,-29971,-29972,-29972,-1931,-29972,-29974,-29976,-29977,-29978,-29978,-29978,-29979,-29982,-29980,-29982,-29983,-29984,-29983,-29986,-29987,-29987,-29987,-29987,-29988,-29990,-29989,-29990,-29991,-29992,-29992,-29992,-29990,-29992,-29993,-29993,-29992,-29994,-29993,-29995,-495,-29994,-29994,-29995,-431,-29996,-29997,-29997,-29997,-29998,-29999,-29999]} 1. e4 {[%emt 0:00:00]} e5 {[%emt 0:00:00]} 2. d4 {[%emt 0:00:00]} exd4 {[%emt 0:00:00]} 3. Bc4 {[%emt 0:00:00]} Nf6 {[%emt 0:00:00]} 4. Nf3 {[%emt 0:00:00]} Bc5 {[%emt 0:00:00]} 5. O-O {[%emt 0:00:00]} d6 {[%emt 0:00:00]} 6. e5 {[%emt 0:00:00] C24: Bishop's Opening: 2...Nf6.} dxe5 {[%emt 0:00:00]} 7. Nxe5 {[%emt 0:00:00]} O-O {[%emt 0:00:00]} 8. c3 {[%emt 0:00:00] [#] Black is slightly better.} Be6 $146 {[%emt 0:00:00]} ({Predecessor:} 8... Nc6 9. Nxc6 bxc6 10. Qf3 Qe8 11. Bg5 Bg4 12. Qxc6 Qxc6 {0-1 (12) Corral Aragon,J (1809)-Rueda Maria,R (1905) Madrid 2015}) 9. Bxe6 {[%emt 0:00:00]} fxe6 {[%emt 0:00:00]} 10. Qb3 {[%emt 0:00:00]} Qd5 {[%emt 0:00:00]} 11. Qxd5 {[%emt 0:00:00]} Nxd5 {[%emt 0:00:00]} 12. cxd4 {[%emt 0:00:00]} Bxd4 {[%emt 0:00:00]} 13. Nf3 {[%emt 0:00:00]} Bf6 {[%emt 0:00:34] 0x0.001aa10d67d7dp-1022s more active pieces.} 14. Re1 {[%emt 0:00:00]} Re8 {[%emt 0:00:36]} 15. Ng5 {[%emt 0:00:18] [#]} (15. Nbd2 $17) 15... Bxg5 $2 {[%emt 0:03:34]} (15... Nb4 16. Na3 Nd3 17. Rxe6 Na6) (15... Nb4 $1 $19 {[%cal Rb4c2] aiming for ...Nc2.} 16. Na3 Nd3 17. Rxe6 Na6) 16. Bxg5 $15 {[%emt 0:04:26]} Nc6 {[%emt 0:00:47]} 17. Nc3 {[%emt 0:02:07]} Nxc3 {[%emt 0:01:58]} 18. bxc3 {[%emt 0:00:06]} h6 {[%emt 0:00:31]} 19. Bf4 {[%emt 0:00:52]} e5 {[%emt 0:00:57]} 20. Be3 {[%emt 0:00:19]} (20. Bg3 $142) 20... Rad8 $17 {[%emt 0:01:15]} 21. Rab1 {[%emt 0:00:43]} b6 {[%emt 0:01:15]} 22. c4 {[%emt 0:01:38]} Nd4 {[%emt 0:03:37]} 23. a4 {[%emt 0:04:31]} Nc2 {[%emt 0:01:09]} 24. Rf1 {[%emt 0:02:48]} (24. Rec1 $17 Nxe3 25. fxe3) 24... Nxe3 {[%emt 0:01:34]} 25. fxe3 $19 {[%emt 0:00:14][%mdl 4096] Endgame KRR-KRR} Rd3 {[%emt 0:01:09]} 26. a5 {[%emt 0:01:05]} (26. Rfd1 $17 {was worth a try.} Red8 27. Rxd3 Rxd3 28. c5) 26... Rxe3 {[%emt 0:00:34]} ({And not} 26... bxa5 27. Rb7 $17) 27. axb6 {[%emt 0:00:10]} axb6 {[%emt 0:00:15]} 28. c5 {[%emt 0:00:12]} bxc5 {[%emt 0:01:00]} 29. Rbc1 {[%emt 0:00:12]} Rd8 {[%emt 0:01:41]} 30. Kf2 {[%emt 0:03:06]} (30. Rc2 $142) 30... Ra3 {[%emt 0:01:10]} 31. Rxc5 $2 {[%emt 0:02:29]} (31. Rfe1 {was called for.}) 31... Rd2+ {[%emt 0:00:22]} 32. Ke1 {[%emt 0:00:28]} Rxg2 {[%emt 0:00:11]} 33. Kd1 {[%emt 0:00:57]} Rxh2 {[%emt 0:00:26] [#] ( -> ...Raa2)} 34. Rxc7 {[%emt 0:00:13]} Ra1+ {[%emt 0:00:29]} 35. Rc1 {[%emt 0:00:07]} Rxc1+ {[%emt 0:00:04]} 36. Kxc1 {[%emt 0:00:06] KR-KR} g5 {[%emt 0:00:35]} 37. Re1 {[%emt 0:00:24]} g4 {[%emt 0:00:33]} 38. Re4 {[%emt 0:00:28]} h5 {[%emt 0:00:18][%cal Bh6h5,Bh5h4,Bh4h3][%mdl 32]} 39. Rxe5 {[%emt 0:00:18]} Kf7 {[%emt 0:00:22]} 40. Kd1 {[%emt 0:00:08]} Kf6 {[%emt 0:00:28]} 41. Rd5 {[%emt 0:15:26]} h4 {[%emt 0:18:24]} 42. Ke1 {[%emt 0:00:08]} g3 {[%emt 0:00:09]} 43. Kf1 {[%emt 0:00:15]} h3 {[%emt 0:00:04]} 44. Kg1 {[%emt 0:00:42]} Ra2 {[%emt 0:00:20]} 45. Rd1 {[%emt 0:00:09]} Kf5 {[%emt 0:00:30]} 46. Kh1 {[%emt 0:00:09]} Kf4 {[%emt 0:01:43]} 47. Rb1 {[%emt 0:00:22]} Re2 {[%emt 0:00:18]} 48. Ra1 {[%emt 0:00:36]} Kf3 {[%emt 0:01:24]} 49. Rb1 {[%emt 0:01:25]} Ke3 {[%emt 0:02:06]} 50. Rc1 {[%emt 0:00:33]} Kd2 {[%emt 0:00:14]} 51. Ra1 {[%emt 0:01:18]} Re1+ {[%emt 0:00:06]} 52. Rxe1 {[%emt 0:00:13]} Kxe1 {[%emt 0:00:06] KP-KP} 53. Kg1 {[%emt 0:00:00]} Ke2 {[%emt 0:01:04][%cal Be1e2,Be2f3,Bf3f2][%mdl 32]} 54. Kh1 {[%emt 0:00:07]} Kf3 {[%emt 0:00:03]} 55. Kg1 {[%emt 0:00:06]} g2 {[%emt 0:00:13]} 56. Kh2 {[%emt 0:00:05]} Kf2 {[%emt 0:00:13] Black mates.} 57. Kxh3 {[%emt 0:00:04]} g1=Q {[%emt 0:00:44][%csl Gf2][%cal Rg1g3]} 58. Kh4 {[%emt 0:00:01]} Qg6 {[%emt 0:00:11]} 59. Kh3 {[%emt 0:00:11]} Qh5# {[%emt 0:00:07] Weighted Error Value: White=0.82/Black=0.14 (very precise)} 0-1

[Event "GER-ch Youth-U12 2022"]
[Site "Willingen"]
[Date "2022.06.08"]
[Round "6.17"]
[White "Aweh, Mads"]
[Black "Kullmann, Max"]
[Result "1/2-1/2"]
[ECO "B01"]
[WhiteElo "1438"]
[BlackElo "1442"]
[Annotator "NA RC COMBH"]
[PlyCount "66"]
[EventDate "2022.06.05"]
[EventType "swiss"]
[EventRounds "9"]
[EventCountry "GER"]
[SourceTitle "playchess.com"]
[Source "ChessBase"]
[SourceQuality "1"]
[TimeControl "40/4500+30:900+30"]

1. e4 {[%emt 0:00:00]} d5 {[%emt 0:00:00]} 2. exd5 {[%emt 0:00:00]} Qxd5 {[%emt 0:00:00]} 3. Nc3 {[%emt 0:00:00]} Qa5 {[%emt 0:00:00]} 4. d4 {[%emt 0:00:00]} c6 {[%emt 0:00:00]} 5. Nf3 {[%emt 0:00:00]} Bf5 {[%emt 0:00:00]} 6. Bc4 {[%emt 0:00:00]} e6 {[%emt 0:00:00]} 7. Bd2 {[%emt 0:00:00]} Qc7 {[%emt 0:00:00]} 8. Qe2 {[%emt 0:00:00]} Be7 {[%emt 0:00:00]} 9. O-O-O {[%emt 0:00:00]} Nf6 {[%emt 0:00:00]} 10. Rdg1 {[%emt 0:00:00]} Nbd7 {[%emt 0:00:00]} 11. h3 {[%emt 0:00:59]} Nb6 {[%emt 0:00:00]} 12. Bd3 {[%emt 0:02:21]} Bxd3 {[%emt 0:00:00]} 13. Qxd3 {[%emt 0:01:11]} Nfd5 {[%emt 0:01:15]} 14. Ne5 {[%emt 0:02:37]} Bf6 {[%emt 0:04:42]} 15. f4 {[%emt 0:03:18]} O-O-O {[%emt 0:04:06]} 16. Ne4 {[%emt 0:04:16]} Rhf8 {[%emt 0:12:50]} 17. Qe2 {[%emt 0:07:10]} Ne7 {[%emt 0:10:49]} 18. c3 {[%emt 0:02:24]} Nf5 {[%emt 0:08:36]} 19. g4 {[%emt 0:05:04]} Nd6 {[%emt 0:00:23]} 20. g5 {[%emt 0:01:46]} Bxe5 {[%emt 0:04:21]} 21. fxe5 {[%emt 0:00:41]} Nf5 {[%emt 0:00:17]} 22. Rf1 {[%emt 0:01:57]} Nd5 {[%emt 0:02:21]} 23. Rf2 {[%emt 0:05:55]} Rd7 {[%emt 0:07:16]} 24. Rhf1 {[%emt 0:03:10]} Kb8 {[%emt 0:13:53]} 25. Bf4 {[%emt 0:02:39]} Nde7 {[%emt 0:04:13]} 26. Bh2 {[%emt 0:04:54]} Ka8 {[%emt 0:02:15]} 27. Nd6 {[%emt 0:05:45]} Qd8 {[%emt 0:00:44]} 28. Qe4 {[%emt 0:03:42]} Nxd6 {[%emt 0:00:54]} 29. exd6 {[%emt 0:00:04]} Nf5 {[%emt 0:00:10]} 30. h4 {[%emt 0:00:16]} Qa5 {[%emt 0:03:34]} 31. Kb1 {[%emt 0:03:11]} Qd5 {[%emt 0:01:00]} 32. Qxd5 {[%emt 0:02:00]} cxd5 {[%emt 0:00:13]} 33. Be5 {[%emt 0:06:49]} Kb8 {[%emt 0:00:30]} 1/2-1/2

[Event "GER-ch Youth-U12 2022"]
[Site "Willingen"]
[Date "2022.06.08"]
[Round "6.18"]
[White "Goldkuhle, Collin"]
[Black "Herrmann, Jakob"]
[Result "1/2-1/2"]
[ECO "B17"]
[WhiteElo "1323"]
[BlackElo "1737"]
[Annotator "NA RC COMBH"]
[PlyCount "65"]
[EventDate "2022.06.05"]
[EventType "swiss"]
[EventRounds "9"]
[EventCountry "GER"]
[SourceTitle "playchess.com"]
[Source "ChessBase"]
[SourceQuality "1"]
[TimeControl "40/4500+30:900+30"]

1. e4 {[%emt 0:00:00]} c6 {[%emt 0:00:00]} 2. d4 {[%emt 0:00:00]} d5 {[%emt 0:00:00]} 3. Nd2 {[%emt 0:00:00]} dxe4 {[%emt 0:00:00]} 4. Nxe4 {[%emt 0:00:00]} Nd7 {[%emt 0:00:00]} 5. Nf3 {[%emt 0:00:00]} Ngf6 {[%emt 0:00:00]} 6. Ng3 {[%emt 0:00:00]} e6 {[%emt 0:00:00]} 7. Bd3 {[%emt 0:00:00]} Bd6 {[%emt 0:00:00]} 8. Qe2 {[%emt 0:00:00]} O-O {[%emt 0:00:00]} 9. Bg5 {[%emt 0:00:00]} Qa5+ {[%emt 0:00:00]} 10. c3 {[%emt 0:00:00]} Re8 {[%emt 0:04:04]} 11. O-O {[%emt 0:00:00]} Qc7 {[%emt 0:00:24]} 12. Ne4 {[%emt 0:01:38]} Nxe4 {[%emt 0:01:22]} 13. Qxe4 {[%emt 0:00:47]} Nf8 {[%emt 0:00:08]} 14. Rfe1 {[%emt 0:04:39]} b6 {[%emt 0:02:52]} 15. Qe2 {[%emt 0:03:40]} Bb7 {[%emt 0:01:43]} 16. Rad1 {[%emt 0:02:41]} h6 {[%emt 0:01:10]} 17. Be3 {[%emt 0:01:02]} Rac8 {[%emt 0:03:38]} 18. Nd2 {[%emt 0:08:54]} Bxh2+ {[%emt 0:00:16]} 19. Kf1 {[%emt 0:00:29]} Bf4 {[%emt 0:01:22]} 20. Nc4 {[%emt 0:01:17]} Bxe3 {[%emt 0:01:34]} 21. fxe3 {[%emt 0:01:16]} c5 {[%emt 0:01:48]} 22. dxc5 {[%emt 0:01:28]} Qxc5 {[%emt 0:00:23]} 23. Nd6 {[%emt 0:01:26]} Qc7 {[%emt 0:07:38]} 24. Nxe8 {[%emt 0:01:54]} Rxe8 {[%emt 0:00:23]} 25. Qf2 {[%emt 0:02:50]} Rd8 {[%emt 0:05:57]} 26. Rd2 {[%emt 0:04:09]} Rxd3 {[%emt 0:14:23]} 27. Rxd3 {[%emt 0:01:29]} Ba6 {[%emt 0:00:23]} 28. Qd2 {[%emt 0:02:14]} Qc4 {[%emt 0:02:30]} 29. Rd1 {[%emt 0:01:25]} Qxa2 {[%emt 0:00:36]} 30. Qc2 {[%emt 0:02:24]} Bxd3+ {[%emt 0:07:04]} 31. Rxd3 {[%emt 0:00:37]} Qc4 {[%emt 0:01:20]} 32. Kf2 {[%emt 0:01:16]} Qh4+ {[%emt 0:00:10]} 33. Kf1 {[%emt 0:00:56]} 1/2-1/2

[Event "GER-ch Youth-U12 2022"]
[Site "Willingen"]
[Date "2022.06.08"]
[Round "6.19"]
[White "Burkart, Lloyd Shang"]
[Black "Fettig, Michel"]
[Result "1-0"]
[ECO "D93"]
[WhiteElo "1559"]
[BlackElo "1407"]
[Annotator "NA RC COMBH"]
[PlyCount "21"]
[EventDate "2022.06.05"]
[EventType "swiss"]
[EventRounds "9"]
[EventCountry "GER"]
[SourceTitle "playchess.com"]
[Source "ChessBase"]
[SourceQuality "1"]
[TimeControl "40/4500+30:900+30"]

1. d4 {[%emt 0:00:00]} Nf6 {[%emt 0:00:00]} 2. c4 {[%emt 0:00:00]} g6 {[%emt 0:00:00]} 3. Nf3 {[%emt 0:00:00]} Bg7 {[%emt 0:00:00]} 4. Nc3 {[%emt 0:00:00]} O-O {[%emt 0:00:00]} 5. Bf4 {[%emt 0:00:00]} d5 {[%emt 0:00:00]} 6. e3 {[%emt 0:00:00]} Bf5 {[%emt 0:00:00]} 7. Qb3 {[%emt 0:00:00]} b6 {[%emt 0:00:00]} 8. Nxd5 {[%emt 0:00:00]} Nxd5 {[%emt 0:00:45]} 9. cxd5 {[%emt 0:00:00]} Nd7 {[%emt 0:00:46]} 10. Rc1 {[%emt 0:00:00]} Rc8 {[%emt 0:04:06]} 11. Ba6 {[%emt 0:00:00]} 1-0

[Event "GER-ch Youth-U12 2022"]
[Site "Willingen"]
[Date "2022.06.08"]
[Round "6.20"]
[White "Radeke, Timothy"]
[Black "Noennig, Jakob"]
[Result "0-1"]
[ECO "C54"]
[WhiteElo "1129"]
[BlackElo "1556"]
[Annotator "NA RC COMBH"]
[PlyCount "110"]
[EventDate "2022.06.05"]
[EventType "swiss"]
[EventRounds "9"]
[EventCountry "GER"]
[SourceTitle "playchess.com"]
[Source "ChessBase"]
[SourceQuality "1"]
[TimeControl "40/4500+30:900+30"]

1. e4 {[%emt 0:00:00]} e5 {[%emt 0:00:00]} 2. Nf3 {[%emt 0:00:00]} Nc6 {[%emt 0:00:00]} 3. Bc4 {[%emt 0:00:00]} Bc5 {[%emt 0:00:00]} 4. c3 {[%emt 0:00:00]} Nf6 {[%emt 0:00:00]} 5. d4 {[%emt 0:00:00]} exd4 {[%emt 0:00:00]} 6. cxd4 {[%emt 0:00:00]} Bb4+ {[%emt 0:00:00]} 7. Bd2 {[%emt 0:00:00]} Bxd2+ {[%emt 0:00:00]} 8. Nbxd2 {[%emt 0:00:00]} d5 {[%emt 0:00:00]} 9. exd5 {[%emt 0:00:00]} Nxd5 {[%emt 0:00:00]} 10. Qb3 {[%emt 0:00:00]} Nce7 {[%emt 0:00:00]} 11. O-O {[%emt 0:00:00]} O-O {[%emt 0:00:00]} 12. Rfe1 {[%emt 0:00:00]} c6 {[%emt 0:00:00]} 13. Rad1 {[%emt 0:00:00]} Qb6 {[%emt 0:00:00]} 14. Qa3 {[%emt 0:00:00]} Be6 {[%emt 0:00:00]} 15. Ne4 {[%emt 0:01:25]} Rfe8 {[%emt 0:00:25]} 16. Neg5 {[%emt 0:03:53]} Nf5 {[%emt 0:12:43]} 17. Nxe6 {[%emt 0:03:49]} Rxe6 {[%emt 0:04:22]} 18. Ng5 {[%emt 0:04:27]} Rxe1+ {[%emt 0:04:38]} 19. Rxe1 {[%emt 0:00:41]} Qxd4 {[%emt 0:02:32]} 20. Qf3 {[%emt 0:02:35]} Qxc4 {[%emt 0:03:51]} 21. Qxf5 {[%emt 0:00:17]} Nf6 {[%emt 0:00:22]} 22. h3 {[%emt 0:01:03]} h6 {[%emt 0:16:45]} 23. Ne4 {[%emt 0:00:52]} Nxe4 {[%emt 0:02:57]} 24. Rxe4 {[%emt 0:00:08]} Qc1+ {[%emt 0:02:18]} 25. Kh2 {[%emt 0:00:16]} Qxb2 {[%emt 0:00:26]} 26. Re7 {[%emt 0:00:30]} Rf8 {[%emt 0:00:20]} 27. Qd7 {[%emt 0:00:34]} Qxa2 {[%emt 0:02:56]} 28. Qxb7 {[%emt 0:00:06]} Qxf2 {[%emt 0:00:27]} 29. Qxc6 {[%emt 0:00:12]} Qf4+ {[%emt 0:02:12]} 30. Kg1 {[%emt 0:01:07]} Rb8 {[%emt 0:12:13]} 31. Qc2 {[%emt 0:01:31]} Qb4 {[%emt 0:04:31]} 32. Qc7 {[%emt 0:01:19]} Qb6+ {[%emt 0:00:31]} 33. Kf1 {[%emt 0:00:39]} Qxc7 {[%emt 0:00:11]} 34. Rxc7 {[%emt 0:00:04]} Ra8 {[%emt 0:00:09]} 35. Rc4 {[%emt 0:00:13]} a5 {[%emt 0:00:31]} 36. Ra4 {[%emt 0:00:04]} Kf8 {[%emt 0:00:34]} 37. Ke2 {[%emt 0:00:05]} Ke7 {[%emt 0:00:37]} 38. Kd3 {[%emt 0:00:09]} Kd6 {[%emt 0:04:23]} 39. Kd4 {[%emt 0:00:10]} Kc6 {[%emt 0:00:37]} 40. Kc4 {[%emt 0:00:27]} f5 {[%emt 0:02:13]} 41. Kb3 {[%emt 0:16:07]} Kb5 {[%emt 0:15:35]} 42. Rf4 {[%emt 0:00:05]} g6 {[%emt 0:01:06]} 43. g4 {[%emt 0:00:15]} Rf8 {[%emt 0:09:27]} 44. Rd4 {[%emt 0:04:37]} Rf6 {[%emt 0:00:00]} 45. Rd5+ {[%emt 0:00:00]} Kb6 {[%emt 0:00:00]} 46. Ka4 {[%emt 0:00:00]} f4 {[%emt 0:00:00]} 47. Rb5+ {[%emt 0:00:00]} Kc7 {[%emt 0:00:00]} 48. Kxa5 {[%emt 0:00:00]} f3 {[%emt 0:00:00]} 49. Rb1 {[%emt 0:00:00]} f2 {[%emt 0:00:00]} 50. Rf1 {[%emt 0:00:00]} Kd6 {[%emt 0:00:00]} 51. Kb4 {[%emt 0:00:00]} Ke5 {[%emt 0:00:00]} 52. Kc3 {[%emt 0:00:00]} Ke4 {[%emt 0:00:00]} 53. Kd2 {[%emt 0:00:00]} Kf3 {[%emt 0:00:00]} 54. g5 {[%emt 0:00:00]} hxg5 {[%emt 0:00:00]} 55. Kd3 {[%emt 0:00:00]} Kg2 {[%emt 0:00:00]} 0-1

[Event "GER-ch Youth-U12 2022"]
[Site "Willingen"]
[Date "2022.06.08"]
[Round "6.21"]
[White "Gavrylyuk, Oleksandr"]
[Black "Gulamzada, Elmir"]
[Result "1-0"]
[ECO "C14"]
[WhiteElo "1272"]
[BlackElo "1539"]
[Annotator "NA RC COMBH"]
[PlyCount "69"]
[EventDate "2022.06.05"]
[EventType "swiss"]
[EventRounds "9"]
[EventCountry "GER"]
[SourceTitle "playchess.com"]
[Source "ChessBase"]
[SourceQuality "1"]
[TimeControl "40/4500+30:900+30"]

1. e4 {[%emt 0:00:00]} e6 {[%emt 0:00:00]} 2. d4 {[%emt 0:00:00]} d5 {[%emt 0:00:00]} 3. Nc3 {[%emt 0:00:00]} Nf6 {[%emt 0:00:00]} 4. Bg5 {[%emt 0:00:00]} Be7 {[%emt 0:00:00]} 5. e5 {[%emt 0:00:00]} Nfd7 {[%emt 0:00:00]} 6. Bxe7 {[%emt 0:00:00]} Qxe7 {[%emt 0:00:00]} 7. f4 {[%emt 0:00:00]} a6 {[%emt 0:00:00]} 8. Nf3 {[%emt 0:00:00]} c5 {[%emt 0:00:00]} 9. Bd3 {[%emt 0:00:00]} Nc6 {[%emt 0:04:07]} 10. Be2 {[%emt 0:00:00]} cxd4 {[%emt 0:01:22]} 11. Nxd4 {[%emt 0:00:00]} Qb4 {[%emt 0:00:36]} 12. Nxc6 {[%emt 0:00:00]} bxc6 {[%emt 0:07:02]} 13. Qc1 {[%emt 0:00:12]} c5 {[%emt 0:11:24]} 14. O-O {[%emt 0:03:31]} Bb7 {[%emt 0:11:26]} 15. a3 {[%emt 0:02:03]} Qb6 {[%emt 0:01:16]} 16. Bf3 {[%emt 0:03:44]} O-O {[%emt 0:12:15]} 17. Re1 {[%emt 0:06:02]} d4 {[%emt 0:02:09]} 18. Na4 {[%emt 0:04:08]} Qb5 {[%emt 0:00:58]} 19. Bxb7 {[%emt 0:00:33]} Qxb7 {[%emt 0:00:09]} 20. c3 {[%emt 0:02:12]} d3 {[%emt 0:06:51]} 21. c4 {[%emt 0:01:05]} Qb3 {[%emt 0:01:46]} 22. Nc3 {[%emt 0:02:11]} Qxc4 {[%emt 0:02:07]} 23. Re4 {[%emt 0:02:31]} Qb3 {[%emt 0:00:57]} 24. Qd2 {[%emt 0:05:49]} c4 {[%emt 0:05:04]} 25. Rd4 {[%emt 0:03:11]} Nc5 {[%emt 0:02:40]} 26. Ne4 {[%emt 0:03:35]} Na4 {[%emt 0:04:11]} 27. Rb1 {[%emt 0:02:20]} Rab8 {[%emt 0:01:32]} 28. h3 {[%emt 0:09:02]} Rfc8 {[%emt 0:05:35]} 29. Qc1 {[%emt 0:01:51]} Qb6 {[%emt 0:02:31]} 30. Qe3 {[%emt 0:00:55]} Nc3 {[%emt 0:01:00]} 31. Nxc3 {[%emt 0:01:16]} Qb3 {[%emt 0:01:37]} 32. Qd2 {[%emt 0:01:32]} Qb6 {[%emt 0:00:54]} 33. Qf2 {[%emt 0:00:30]} Rb7 {[%emt 0:01:24]} 34. Ne4 {[%emt 0:02:12]} Rcc7 {[%emt 0:00:50]} 35. Rd8# {[%emt 0:00:54]} 1-0

[Event "GER-ch Youth-U12 2022"]
[Site "Willingen"]
[Date "2022.06.08"]
[Round "6.22"]
[White "Nguyen, Bach Khoi"]
[Black "Mukazhanov, Mansur"]
[Result "0-1"]
[ECO "C01"]
[WhiteElo "1261"]
[BlackElo "1279"]
[Annotator "NA RC COMBH"]
[PlyCount "60"]
[EventDate "2022.06.05"]
[EventType "swiss"]
[EventRounds "9"]
[EventCountry "GER"]
[SourceTitle "playchess.com"]
[Source "ChessBase"]
[SourceQuality "1"]
[TimeControl "40/4500+30:900+30"]

1. e4 {[%emt 0:00:00]} e6 {[%emt 0:00:00]} 2. d4 {[%emt 0:00:00]} d5 {[%emt 0:00:00]} 3. exd5 {[%emt 0:00:00]} exd5 {[%emt 0:00:00]} 4. Bd3 {[%emt 0:00:00]} Bd6 {[%emt 0:00:00]} 5. Nf3 {[%emt 0:00:00]} Nf6 {[%emt 0:00:00]} 6. Nbd2 {[%emt 0:00:00]} O-O {[%emt 0:00:00]} 7. O-O {[%emt 0:00:00]} Nbd7 {[%emt 0:00:00]} 8. Re1 {[%emt 0:00:00]} b6 {[%emt 0:00:00]} 9. Ne5 {[%emt 0:00:00]} Bb7 {[%emt 0:00:00]} 10. Ndf3 {[%emt 0:00:00]} c5 {[%emt 0:00:00]} 11. Bg5 {[%emt 0:00:00]} Qc7 {[%emt 0:00:00]} 12. c3 {[%emt 0:06:23]} Ne4 {[%emt 0:00:00]} 13. Nxd7 {[%emt 0:13:27]} Qxd7 {[%emt 0:00:00]} 14. dxc5 {[%emt 0:01:26]} bxc5 {[%emt 0:00:00]} 15. Bh4 {[%emt 0:05:50]} Rfe8 {[%emt 0:02:21]} 16. c4 {[%emt 0:02:20]} d4 {[%emt 0:02:05]} 17. Qc2 {[%emt 0:01:44]} f5 {[%emt 0:05:48]} 18. Ng5 {[%emt 0:02:30]} h6 {[%emt 0:06:08]} 19. Nxe4 {[%emt 0:00:26]} fxe4 {[%emt 0:00:09]} 20. Bxe4 {[%emt 0:00:51]} Bxe4 {[%emt 0:00:10]} 21. Rxe4 {[%emt 0:00:14]} d3 {[%emt 0:00:08]} 22. Rxe8+ {[%emt 0:01:47]} Rxe8 {[%emt 0:00:08]} 23. Qc3 {[%emt 0:06:16]} Be5 {[%emt 0:02:00]} 24. Qd2 {[%emt 0:04:13]} Bf4 {[%emt 0:00:25]} 25. Qc3 {[%emt 0:05:12]} d2 {[%emt 0:02:31]} 26. Rd1 {[%emt 0:00:06]} Qg4 {[%emt 0:00:22]} 27. f3 {[%emt 0:01:01]} Qxh4 {[%emt 0:00:20]} 28. g3 {[%emt 0:00:25]} Be3+ {[%emt 0:00:38]} 29. Kg2 {[%emt 0:00:41]} Qd4 {[%emt 0:00:08]} 30. Qb3 {[%emt 0:00:53]} Bg5 {[%emt 0:04:22]} 0-1

[Event "GER-ch Youth-U12 2022"]
[Site "Willingen"]
[Date "2022.06.08"]
[Round "6.23"]
[White "Hellenbroich, Hanno"]
[Black "Mohammadzadeh, Daris"]
[Result "1/2-1/2"]
[ECO "B25"]
[WhiteElo "1274"]
[BlackElo "1371"]
[Annotator "NA RC COMBH"]
[PlyCount "87"]
[EventDate "2022.06.05"]
[EventType "swiss"]
[EventRounds "9"]
[EventCountry "GER"]
[SourceTitle "playchess.com"]
[Source "ChessBase"]
[SourceQuality "1"]
[TimeControl "40/4500+30:900+30"]

1. e4 {[%emt 0:00:00]} c5 {[%emt 0:00:00]} 2. Nc3 {[%emt 0:00:00]} Nc6 {[%emt 0:00:00]} 3. g3 {[%emt 0:00:00]} Nf6 {[%emt 0:00:00]} 4. Bg2 {[%emt 0:00:00]} d6 {[%emt 0:00:00]} 5. d3 {[%emt 0:00:00]} g6 {[%emt 0:00:00]} 6. f4 {[%emt 0:00:00]} Bg7 {[%emt 0:00:00]} 7. Nf3 {[%emt 0:00:00]} Bd7 {[%emt 0:00:00]} 8. O-O {[%emt 0:00:00]} O-O {[%emt 0:00:00]} 9. h3 {[%emt 0:00:00]} a6 {[%emt 0:06:09]} 10. a4 {[%emt 0:00:00]} Qc7 {[%emt 0:07:28]} 11. g4 {[%emt 0:03:33]} Rfc8 {[%emt 0:05:32]} 12. g5 {[%emt 0:00:58]} Ne8 {[%emt 0:01:30]} 13. Nd5 {[%emt 0:00:09]} Qd8 {[%emt 0:01:06]} 14. a5 {[%emt 0:00:07]} Rab8 {[%emt 0:02:40]} 15. Nb6 {[%emt 0:01:19]} Rc7 {[%emt 0:06:12]} 16. c3 {[%emt 0:02:38]} e6 {[%emt 0:02:30]} 17. Be3 {[%emt 0:05:17]} Ne7 {[%emt 0:05:07]} 18. d4 {[%emt 0:14:14]} Bc6 {[%emt 0:10:21]} 19. Nh4 {[%emt 0:17:25]} cxd4 {[%emt 0:09:52]} 20. Bxd4 {[%emt 0:11:07]} Bxd4+ {[%emt 0:04:16]} 21. Qxd4 {[%emt 0:00:24]} Nc8 {[%emt 0:00:34]} 22. Nc4 {[%emt 0:07:21]} Bb5 {[%emt 0:05:52]} 23. b3 {[%emt 0:00:45]} Bxc4 {[%emt 0:00:37]} 24. bxc4 {[%emt 0:00:19]} Ne7 {[%emt 0:01:15]} 25. f5 {[%emt 0:07:06]} Rbc8 {[%emt 0:04:58]} 26. fxe6 {[%emt 0:02:10]} fxe6 {[%emt 0:00:43]} 27. Ra2 {[%emt 0:06:31]} Nc6 {[%emt 0:03:07]} 28. Rf8+ {[%emt 0:04:08]} Kxf8 {[%emt 0:00:28]} 29. Qh8+ {[%emt 0:00:02]} Kf7 {[%emt 0:07:35]} 30. Rf2+ {[%emt 0:00:07]} Nf6 {[%emt 0:01:20]} 31. Qxh7+ {[%emt 0:00:46]} Ke8 {[%emt 0:00:28]} 32. Qxg6+ {[%emt 0:00:27]} Kd7 {[%emt 0:00:52]} 33. gxf6 {[%emt 0:01:16]} Ne5 {[%emt 0:00:36]} 34. Qg7+ {[%emt 0:00:22]} Kc6 {[%emt 0:00:12]} 35. f7 {[%emt 0:00:20]} Nxf7 {[%emt 0:00:15]} 36. Rxf7 {[%emt 0:00:14]} Rxf7 {[%emt 0:00:01]} 37. Qxf7 {[%emt 0:00:09]} Qxh4 {[%emt 0:00:04]} 38. e5+ {[%emt 0:00:23]} Kc5 {[%emt 0:00:51]} 39. Qxe6 {[%emt 0:01:00]} Qe1+ {[%emt 0:00:29]} 40. Bf1 {[%emt 0:00:55]} Qe3+ {[%emt 0:01:06]} 41. Kh1 {[%emt 0:16:22]} Qf3+ {[%emt 0:16:21]} 42. Bg2 {[%emt 0:00:11]} Qd1+ {[%emt 0:01:15]} 43. Kh2 Rf8 {[%emt 0:00:01]} 44. Bxb7 {[%emt 0:00:02]} 1/2-1/2